bitfinex/quotes_BTCUSD_20250108
["timestamp","ask_amount","ask_price","bid_price","bid_amount"]
[1736312465495,0.19049096,96441.0,96440.0,0.10003441]
[1736312466545,0.19049096,96441.0,96440.0,0.001]
[1736312466777,0.19178734,96441.0,96440.0,0.001]
[1736312467290,0.19278734,96441.0,96440.0,0.001]
[1736312467774,0.19801356,96441.0,96425.0,0.0001704]
[1736312468011,0.18649096,96428.0,96427.0,0.09903441]
[1736312470942,0.19549096,96428.0,96427.0,0.10003441]
[1736312471267,0.19649096,96428.0,96427.0,0.10003441]
[1736312472161,0.18749096,96428.0,96427.0,0.09903441]
[1736312472396,0.19649096,96428.0,96427.0,0.10003441]
[1736312472880,0.19549096,96428.0,96427.0,0.10003441]
[1736312473116,0.19649096,96428.0,96427.0,0.10003441]
[1736312473773,0.19549096,96428.0,96427.0,0.09903441]
[1736312474031,0.18649096,96427.0,96425.0,0.0001704]
[1736312474203,0.39519749,96427.0,96425.0,0.0001704]
[1736312474407,0.39390096,96427.0,96425.0,0.0001704]
[1736312475462,0.40290096,96427.0,96426.0,0.00105102]
[1736312475612,0.39390096,96427.0,96426.0,5.102e-05]
[1736312475811,0.4040719,96427.0,96426.0,5.102e-05]
[1736312476032,0.9815719,96427.0,96426.0,5.102e-05]
[1736312476242,1.32309351,96427.0,96426.0,5.102e-05]
[1736312476444,1.32309351,96427.0,96425.0,0.0001704]
[1736312476445,0.86399096,96426.0,96425.0,4.2e-07]
[1736312476667,3.06779198,96426.0,96425.0,4.2e-07]
[1736312477012,0.96429098,96426.0,96425.0,4.2e-07]
[1736312477781,0.96429098,96426.0,96425.0,0.00200042]
[1736312477782,0.97929098,96426.0,96425.0,0.00200042]
[1736312478179,2.42866298,96426.0,96425.0,0.00100042]
[1736312478539,2.42566298,96426.0,96425.0,0.00100042]
[1736312478756,2.43466298,96426.0,96425.0,0.00100042]
[1736312480868,2.20825198,96426.0,96425.0,0.00100042]
[1736312481032,2.06200098,96426.0,96425.0,0.00100042]
[1736312481245,2.03330698,96426.0,96425.0,0.00100042]
[1736312482808,0.97929098,96426.0,96425.0,0.00100042]
[1736312482984,3.26971598,96426.0,96425.0,0.00100042]
[1736312483185,0.51399096,96398.0,96397.0,0.0001704]
[1736312483397,0.51399096,96398.0,96397.0,0.00022141]
[1736312483398,0.72146396,96398.0,96397.0,0.00022141]
[1736312483926,1.37579496,96398.0,96397.0,0.00022141]
[1736312484607,0.83246396,96398.0,96397.0,0.00122141]
[1736312484812,0.97036296,96398.0,96397.0,0.00122141]
[1736312484960,0.96136296,96398.0,96397.0,0.00022141]
[1736312485163,0.97036296,96398.0,96397.0,0.00122141]
[1736312485678,0.96136296,96398.0,96397.0,0.00022141]
[1736312485881,0.95936296,96398.0,96397.0,0.00022141]
[1736312486099,0.96136296,96398.0,96397.0,0.00022141]
[1736312487139,0.96836296,96398.0,96397.0,0.00122141]
[1736312487500,0.98097018,96398.0,96397.0,0.00122141]
[1736312488346,0.97197018,96398.0,96397.0,0.00022141]
[1736312488559,0.73407118,96398.0,96397.0,0.00022141]
[1736312488766,0.74307118,96398.0,96397.0,0.00122141]
[1736312488973,0.74307118,96398.0,96397.0,0.00022141]
[1736312488974,0.52499096,96398.0,96397.0,0.00022141]
[1736312489145,0.52299096,96398.0,96397.0,0.00022141]
[1736312489357,0.52499096,96398.0,96397.0,0.07892141]
[1736312489968,0.52299096,96398.0,96397.0,0.00022141]
[1736312490343,0.52499096,96398.0,96397.0,0.00022141]
[1736312490747,0.53399096,96398.0,96397.0,0.00122141]
[1736312492571,0.89499196,96398.0,96397.0,0.00122141]
[1736312492772,0.77131896,96398.0,96397.0,0.00122141]
[1736312493353,0.53399096,96398.0,96397.0,0.00122141]
[1736312493562,0.96683096,96398.0,96397.0,0.00122141]
[1736312494712,0.94514796,96398.0,96397.0,0.00122141]
[1736312496781,1.04514796,96398.0,96397.0,0.00122141]
[1736312498984,1.19514796,96398.0,96397.0,0.00122141]
[1736312499187,1.29514796,96398.0,96397.0,0.00122141]
[1736312500003,1.29314796,96398.0,96397.0,0.00122141]
[1736312500983,0.83024296,96398.0,96397.0,0.00022141]
[1736312501194,0.67599096,96398.0,96397.0,0.00022141]
[1736312501392,0.51699096,96398.0,96397.0,0.00022141]
[1736312501756,0.52599096,96398.0,96397.0,0.00022141]
[1736312502454,0.52299096,96398.0,96397.0,0.00022141]
[1736312502658,0.51699096,96398.0,96397.0,0.00022141]
[1736312502862,0.52599096,96398.0,96397.0,0.00022141]
[1736312503261,0.67299096,96398.0,96397.0,0.00022141]
[1736312503575,1.11893796,96398.0,96397.0,0.00022141]
[1736312503767,0.77299096,96398.0,96397.0,0.00022141]
[1736312503986,0.77599096,96398.0,96397.0,0.00022141]
[1736312504552,1.62056096,96398.0,96397.0,0.00022141]
[1736312504758,1.61156096,96398.0,96397.0,0.00022141]
[1736312504984,1.62056096,96398.0,96397.0,0.00022141]
[1736312505185,1.27818996,96398.0,96397.0,0.00022141]
[1736312505387,0.89243496,96398.0,96397.0,0.00022141]
[1736312505586,0.58387592,96398.0,96397.0,0.00022141]
[1736312505790,0.67599096,96398.0,96397.0,0.08082141]
[1736312506195,0.52599096,96398.0,96397.0,0.12742141]
[1736312506387,0.51399096,96398.0,96397.0,0.12742141]
[1736312506590,0.51699096,96398.0,96397.0,0.12742141]
[1736312506814,0.52599096,96398.0,96397.0,0.12742141]
[1736312507372,0.52299096,96398.0,96397.0,0.12742141]
[1736312508219,0.52299096,96398.0,96397.0,0.08082141]
[1736312508425,0.72547296,96398.0,96397.0,0.00022141]
[1736312508555,0.71647296,96398.0,96397.0,0.00022141]
[1736312508788,0.72647296,96398.0,96397.0,0.00022141]
[1736312509172,0.72547296,96398.0,96397.0,0.00022141]
[1736312509578,0.72847296,96398.0,96397.0,0.00022141]
[1736312509807,0.71947296,96398.0,96397.0,0.00022141]
[1736312510014,0.72547296,96398.0,96397.0,0.00022141]
[1736312510433,0.71947296,96398.0,96397.0,0.00022141]
[1736312511284,0.86947296,96398.0,96397.0,0.00022141]
[1736312511664,0.87847296,96398.0,96397.0,0.00022141]
[1736312511870,0.87547296,96398.0,96397.0,0.00022141]
[1736312512104,0.86947296,96398.0,96397.0,0.00022141]
[1736312512315,1.06947296,96398.0,96397.0,0.00022141]
[1736312512524,0.74396796,96396.0,96395.0,0.00448]
[1736312512770,1.88279196,96396.0,96395.0,0.004531]
[1736312513021,2.21029196,96396.0,96395.0,0.004531]
[1736312513534,2.30932637,96396.0,96395.0,0.004531]
[1736312513743,2.31232637,96396.0,96395.0,0.004531]
[1736312514702,1.17350237,96396.0,96395.0,0.004531]
[1736312514911,2.63581837,96396.0,96395.0,0.004531]
[1736312515135,2.63281837,96396.0,96395.0,0.004531]
[1736312515349,2.6461941,96396.0,96395.0,0.004531]
[1736312515550,2.6371941,96396.0,96395.0,0.004531]
[1736312515757,2.64745035,96396.0,96395.0,0.004531]
[1736312515968,2.64445035,96396.0,96395.0,0.004531]
[1736312516158,2.64745035,96396.0,96395.0,0.004531]
[1736312516421,2.65645035,96396.0,96395.0,0.004531]
[1736312518115,1.74132262,96396.0,96395.0,0.004531]
[1736312518289,1.73832262,96396.0,96395.0,0.004531]
[1736312518698,1.73232262,96396.0,96395.0,0.004531]
[1736312519104,1.74132262,96396.0,96395.0,0.004531]
[1736312520573,1.74272597,96396.0,96395.0,0.004531]
[1736312522597,1.02415721,96396.0,96395.0,0.085031]
[1736312522818,0.89372421,96396.0,96395.0,0.085031]
[1736312523224,0.74372421,96396.0,96395.0,0.085031]
[1736312523465,0.52599096,96396.0,96395.0,0.085031]
[1736312523682,0.52599096,96396.0,96395.0,0.18406541]
[1736312523683,0.42861504,96396.0,96395.0,0.18406541]
[1736312523867,0.52586614,96396.0,96395.0,0.18406541]
[1736312524102,0.42849022,96396.0,96395.0,0.18406541]
[1736312524308,0.08911504,96400.0,96396.0,0.0805]
[1736312524521,0.08911504,96400.0,96397.0,0.09903441]
[1736312524725,0.09737592,96406.0,96399.0,0.0805]
[1736312524929,0.09737592,96406.0,96401.0,0.0483]
[1736312524930,0.08911504,96404.0,96401.0,0.0483]
[1736312525133,0.09737592,96402.0,96401.0,0.1288]
[1736312525962,0.08911504,96404.0,96401.0,0.1288]
[1736312526229,0.09737592,96402.0,96401.0,0.1288]
[1736312526435,0.09737592,96402.0,96401.0,0.22783441]
[1736312526436,0.10137592,96402.0,96401.0,0.22783441]
[1736312527438,0.19049096,96402.0,96401.0,0.22783441]
[1736312527642,0.19049096,96402.0,96401.0,0.22983441]
[1736312528076,0.09311504,96402.0,96401.0,0.22983441]
[1736312528282,0.004,96402.0,96401.0,0.22983441]
[1736312528490,0.004,96402.0,96401.0,0.36955773]
[1736312528699,0.08911504,96407.0,96402.0,0.414928]
[1736312528902,0.08911504,96407.0,96404.0,0.20746]
[1736312529080,0.08911504,96407.0,96405.0,0.09903441]
[1736312529289,0.32737518,96412.0,96407.0,0.0801]
[1736312529491,0.32737518,96412.0,96408.0,0.14693441]
[1736312529704,0.18649096,96410.0,96409.0,0.0801]
[1736312529912,0.18649096,96410.0,96409.0,0.17913441]
[1736312530728,0.18649096,96410.0,96409.0,0.27219712]
[1736312531517,0.18649096,96410.0,96409.0,0.17913441]
[1736312532106,0.19149096,96410.0,96409.0,0.18013441]
[1736312534852,0.19149096,96410.0,96409.0,0.0811]
[1736312535073,0.19278756,96410.0,96409.0,0.001]
[1736312535479,0.33626371,96410.0,96409.0,0.001]
[1736312535680,0.33496711,96410.0,96409.0,0.001]
[1736312535884,0.31153611,96410.0,96409.0,0.001]
[1736312536136,0.18649096,96396.0,96395.0,0.004531]
[1736312536343,0.515163,96396.0,96395.0,0.004531]
[1736312536557,0.51386614,96396.0,96395.0,0.004531]
[1736312538942,0.52586614,96396.0,96395.0,0.004531]
[1736312539154,0.51686614,96396.0,96395.0,0.004531]
[1736312539357,0.51386614,96396.0,96395.0,0.004531]
[1736312539549,0.52486614,96396.0,96395.0,0.004531]
[1736312540075,0.53386614,96396.0,96395.0,0.004531]
[1736312540681,0.53186614,96396.0,96395.0,0.004531]
[1736312541099,0.53386614,96396.0,96395.0,0.004531]
[1736312541322,0.51586614,96396.0,96395.0,0.004531]
[1736312541553,0.51386614,96396.0,96395.0,0.004531]
[1736312541751,0.52286614,96396.0,96395.0,0.005531]
[1736312541955,0.52486614,96396.0,96395.0,0.005531]
[1736312547468,0.52486614,96396.0,96395.0,0.085731]
[1736312548848,0.52486614,96396.0,96395.0,0.084731]
[1736312549051,0.51586614,96396.0,96395.0,0.084731]
[1736312549455,0.52486614,96396.0,96395.0,0.085731]
[1736312550072,0.52286614,96396.0,96395.0,0.085731]
[1736312550274,0.52386614,96396.0,96395.0,0.085731]
[1736312551146,0.52386614,96396.0,96395.0,0.18476541]
[1736312552812,0.10737592,96396.0,96395.0,0.20325899]
[1736312553031,0.01,96396.0,96395.0,0.23216541]
[1736312554416,0.009,96396.0,96395.0,0.23216541]
[1736312554614,0.01,96396.0,96395.0,0.23216541]
[1736312554820,0.001,96396.0,96395.0,0.33019982]
[1736312555024,0.32737518,96411.0,96409.0,0.1294]
[1736312555222,0.09737592,96419.0,96411.0,0.0778]
[1736312555434,0.08911504,96418.0,96414.0,0.0778]
[1736312555637,0.08911504,96426.0,96418.0,0.0778]
[1736312555840,0.08911504,96426.0,96423.0,0.207417]
[1736312556053,0.32737518,96434.0,96430.0,0.207402]
[1736312556267,0.32737518,96434.0,96432.0,0.0485]
[1736312556486,0.41649022,96434.0,96433.0,0.09903441]
[1736312556919,0.32737518,96434.0,96433.0,0.17683441]
[1736312557129,0.32737518,96434.0,96433.0,0.25504758]
[1736312557343,0.33037518,96434.0,96433.0,0.27804758]
[1736312557566,0.003,96434.0,96433.0,0.27804758]
[1736312557780,8.53e-05,96436.0,96434.0,0.023]
[1736312557989,8.53e-05,96436.0,96435.0,0.17683441]
[1736312559030,0.0060853,96436.0,96435.0,0.17683441]
[1736312559678,0.0130853,96436.0,96435.0,0.17783441]
[1736312560227,0.0120853,96436.0,96435.0,0.17783441]
[1736312560467,0.0120853,96436.0,96435.0,0.17883441]
[1736312561088,0.0120853,96436.0,96435.0,0.19587059]
[1736312561510,0.0120853,96436.0,96435.0,0.21887059]
[1736312561711,0.0120853,96436.0,96435.0,0.26727059]
[1736312562680,0.0120853,96436.0,96435.0,0.45356761]
[1736312562882,8.53e-05,96449.0,96436.0,0.587782]
[1736312563082,0.0002381,96441.0,96440.0,0.20063441]
[1736312565277,0.0062381,96441.0,96440.0,0.20063441]
[1736312565758,0.0062381,96441.0,96440.0,0.35063441]
[1736312566168,0.0062381,96441.0,96440.0,0.58354107]
[1736312566420,0.0062381,96441.0,96440.0,0.68257548]
[1736312566802,0.0062381,96441.0,96440.0,0.44966882]
[1736312567225,0.0062381,96441.0,96440.0,0.35063441]
[1736312569117,0.0062381,96441.0,96440.0,0.36103299]
[1736312569879,8.53e-05,96449.0,96448.0,0.380365]
[1736312570088,8.53e-05,96449.0,96448.0,0.61019941]
[1736312570273,8.53e-05,96449.0,96448.0,2.11019941]
[1736312570509,8.53e-05,96449.0,96448.0,2.20923382]
[1736312571132,8.52e-05,96475.0,96448.0,2.20923382]
[1736312571133,0.08911504,96472.0,96463.0,0.338133]
[1736312571336,0.09737592,96470.0,96463.0,0.43716741]
[1736312571717,0.08911504,96474.0,96463.0,0.43716741]
[1736312571955,0.08911504,96472.0,96463.0,0.43716741]
[1736312572554,0.09737592,96470.0,96463.0,0.43716741]
[1736312572767,0.0080852,96464.0,96463.0,0.43816741]
[1736312572985,0.0080852,96464.0,96463.0,0.23083441]
[1736312573208,0.19457616,96464.0,96463.0,0.18243441]
[1736312573820,0.0080852,96464.0,96463.0,0.18243441]
[1736312574023,0.10546112,96464.0,96463.0,0.18243441]
[1736312574432,0.19457616,96464.0,96463.0,0.18243441]
[1736312574792,0.19457616,96464.0,96463.0,0.18212297]
[1736312580385,0.52324719,96464.0,96463.0,0.001]
[1736312580701,0.52195134,96464.0,96463.0,0.001]
[1736312580900,0.52195134,96464.0,96463.0,0.10003441]
[1736312581408,0.51995134,96464.0,96463.0,0.10003441]
[1736312581620,0.51695134,96464.0,96463.0,0.09903441]
[1736312582328,0.51395134,96464.0,96463.0,0.10893785]
[1736312582535,0.4248363,96464.0,96463.0,0.18543785]
[1736312582775,0.32946038,96464.0,96463.0,0.22323441]
[1736312582966,0.51595134,96464.0,96463.0,0.22323441]
[1736312583620,0.51595134,96464.0,96463.0,0.20323441]
[1736312583958,0.51395134,96464.0,96463.0,0.20323441]
[1736312584542,0.51495134,96464.0,96463.0,0.20323441]
[1736312584865,0.52395134,96464.0,96463.0,0.20423441]
[1736312585274,0.51495134,96464.0,96463.0,0.20323441]
[1736312585469,0.33646038,96464.0,96463.0,0.24529185]
[1736312586171,0.33646038,96464.0,96463.0,0.20423441]
[1736312586374,0.0090852,96464.0,96463.0,0.20423441]
[1736312593272,0.0090852,96464.0,96463.0,0.22723441]
[1736312593475,0.0090852,96464.0,96463.0,0.409593]
[1736312594007,0.32737518,96502.0,96474.0,0.023]
[1736312594221,0.32737518,96502.0,96493.0,0.353668]
[1736312594420,0.00059566,96494.0,96493.0,0.485061]
[1736312594634,0.00059566,96494.0,96493.0,0.5542944]
[1736312594808,0.00059566,96494.0,96493.0,0.5312944]
[1736312595010,0.00059566,96494.0,96493.0,0.42970241]
[1736312595811,0.00659566,96494.0,96493.0,0.42970241]
[1736312596033,0.19308662,96494.0,96493.0,0.17493441]
[1736312596178,0.08911504,96492.0,96491.0,0.27774231]
[1736312596384,0.08911504,96492.0,96491.0,0.40047112]
[1736312597001,0.09737592,96493.0,96491.0,0.40047112]
[1736312597199,0.09737592,96493.0,96492.0,0.09903441]
[1736312597401,0.10397158,96494.0,96493.0,0.207268]
[1736312597628,0.10397158,96494.0,96493.0,0.30630241]
[1736312597872,0.00659566,96494.0,96493.0,0.40533682]
[1736312597997,0.09797158,96494.0,96493.0,0.40533682]
[1736312599007,0.00759566,96494.0,96493.0,0.40633682]
[1736312599409,0.00759566,96494.0,96493.0,0.48303682]
[1736312600387,0.00759566,96494.0,96493.0,0.65603682]
[1736312600779,0.00659566,96494.0,96493.0,0.40700241]
[1736312601133,0.00759566,96494.0,96493.0,0.40700241]
[1736312601617,0.00659566,96494.0,96493.0,0.38400241]
[1736312601854,0.00059566,96494.0,96493.0,0.38300241]
[1736312602058,0.00659566,96494.0,96493.0,0.38300241]
[1736312602479,0.0957107,96494.0,96493.0,0.17573441]
[1736312602630,0.1007107,96494.0,96493.0,0.17573441]
[1736312603586,0.1007107,96494.0,96493.0,0.58719473]
[1736312603789,0.1017107,96494.0,96493.0,0.58719473]
[1736312604376,0.1007107,96494.0,96493.0,0.58719473]
[1736312605139,0.1007107,96494.0,96493.0,0.17573441]
[1736312605344,0.19808662,96494.0,96493.0,0.17573441]
[1736312605548,0.18649096,96493.0,96492.0,0.41146032]
[1736312605742,0.08911504,96492.0,96491.0,0.41146032]
[1736312605965,0.18649096,96492.0,96491.0,0.55971076]
[1736312606365,0.18649096,96492.0,96491.0,0.37775826]
[1736312607699,0.18849096,96492.0,96491.0,0.37775826]
[1736312608410,0.18649096,96492.0,96491.0,0.37775826]
[1736312608619,0.18649096,96492.0,96491.0,0.09903441]
[1736312608827,0.19449096,96492.0,96491.0,0.10003441]
[1736312609007,0.19649096,96492.0,96491.0,0.10003441]
[1736312610655,0.19449096,96492.0,96491.0,0.13791024]
[1736312610859,0.19649096,96492.0,96491.0,0.13791024]
[1736312611219,0.10737592,96492.0,96491.0,0.13791024]
[1736312611416,0.01,96492.0,96491.0,0.13791024]
[1736312611589,0.01,96492.0,96491.0,0.10003441]
[1736312611958,0.01,96492.0,96491.0,0.40868277]
[1736312612578,0.01,96492.0,96491.0,0.17633441]
[1736312612991,0.01,96492.0,96491.0,0.22133441]
[1736312613191,0.01,96492.0,96491.0,0.31385909]
[1736312613815,0.01,96492.0,96491.0,0.48685909]
[1736312613988,0.008,96492.0,96491.0,0.48685909]
[1736312614334,0.00059566,96494.0,96491.0,0.48685909]
[1736312614335,0.00059566,96494.0,96492.0,0.39115596]
[1736312614531,0.00059566,96494.0,96493.0,0.39593441]
[1736312614738,0.00059566,96494.0,96493.0,0.49496882]
[1736312615662,0.00459566,96494.0,96493.0,0.49496882]
[1736312615901,0.00459566,96494.0,96493.0,0.77346013]
[1736312617237,0.00459566,96494.0,96493.0,0.49496882]
[1736312618693,0.00459566,96494.0,96493.0,0.39593441]
[1736312618890,0.00459566,96494.0,96493.0,0.24593441]
[1736312619268,0.00459566,96494.0,96493.0,0.47789513]
[1736312619970,0.00459566,96494.0,96493.0,0.24593441]
[1736312622786,0.00459566,96494.0,96493.0,0.17793441]
[1736312624093,0.00459566,96494.0,96493.0,0.27696882]
[1736312624369,0.00459566,96494.0,96493.0,0.17793441]
[1736312624668,0.00459566,96494.0,96493.0,0.31717059]
[1736312625437,0.00459566,96494.0,96493.0,0.17793441]
[1736312626225,0.00459566,96494.0,96493.0,0.36354673]
[1736312627117,0.0937107,96494.0,96493.0,0.28464673]
[1736312627855,0.0937107,96494.0,96493.0,0.19188914]
[1736312628628,0.0937107,96494.0,96493.0,0.09903441]
[1736312629165,0.0937107,96494.0,96493.0,0.23831651]
[1736312629668,0.0937107,96494.0,96493.0,0.30950127]
[1736312630153,0.0937107,96494.0,96493.0,0.17021917]
[1736312630356,0.00459566,96494.0,96493.0,0.09903441]
[1736312630513,0.0937107,96494.0,96493.0,0.09903441]
[1736312632266,0.0937107,96494.0,96493.0,0.23845487]
[1736312632837,0.0937107,96494.0,96493.0,0.09903441]
[1736312633242,0.19108662,96494.0,96493.0,0.09903441]
[1736312633653,0.19108662,96494.0,96493.0,0.23845487]
[1736312634298,0.19108662,96494.0,96493.0,0.13942046]
[1736312634455,0.19108662,96494.0,96493.0,0.09304091]
[1736312634456,1.07717952,96494.0,96493.0,0.09304091]
[1736312634775,1.44719295,96494.0,96493.0,0.09304091]
[1736312634993,1.44766713,96494.0,96493.0,0.09304091]
[1736312635154,1.44766713,96494.0,96477.0,0.07231391]
[1736312635155,0.39379196,96478.0,96477.0,0.07231391]
[1736312635355,0.74446714,96478.0,96477.0,0.07231391]
[1736312635562,1.21197155,96478.0,96477.0,0.07231391]
[1736312635804,1.18053455,96478.0,96477.0,0.07231391]
[1736312636008,0.62384022,96455.0,96454.0,0.13942046]
[1736312636217,0.72121614,96455.0,96454.0,0.13942046]
[1736312636628,0.72121614,96455.0,96442.0,0.13942046]
[1736312636799,0.09867202,96454.0,96442.0,0.13942046]
[1736312637254,0.09867202,96454.0,96440.0,0.13942046]
[1736312638016,0.18778706,96454.0,96438.0,0.13942046]
[1736312638581,0.18778706,96454.0,96437.0,0.01034968]
[1736312639389,0.19549096,96454.0,96453.0,0.10020481]
[1736312639732,0.19678703,96454.0,96453.0,0.10020481]
[1736312639851,0.19978703,96454.0,96453.0,0.10020481]
[1736312640370,0.19678703,96454.0,96453.0,0.10020481]
[1736312640595,0.19978703,96454.0,96453.0,0.10020481]
[1736312640790,0.19978703,96454.0,96453.0,0.0001704]
[1736312640998,0.19078703,96454.0,96453.0,0.0001704]
[1736312641201,0.19678703,96454.0,96453.0,0.0011704]
[1736312641612,0.19678703,96454.0,96453.0,0.0001704]
[1736312641765,0.20278703,96454.0,96453.0,0.0011704]
[1736312641965,0.20149096,96454.0,96453.0,0.0011704]
[1736312642609,0.18649096,96454.0,96453.0,0.0001704]
[1736312642818,0.18778708,96454.0,96453.0,0.0001704]
[1736312643266,0.19078708,96454.0,96453.0,0.0001704]
[1736312643464,0.39813908,96454.0,96453.0,0.0001704]
[1736312643576,0.39384296,96454.0,96453.0,0.0001704]
[1736312643807,0.72121814,96454.0,96453.0,0.0001704]
[1736312644009,1.09811314,96454.0,96453.0,0.0001704]
[1736312644206,1.09828802,96454.0,96453.0,0.0001704]
[1736312644437,1.06745302,96454.0,96453.0,0.0011704]
[1736312644952,1.07818594,96454.0,96453.0,0.0011704]
[1736312645625,1.06934591,96454.0,96453.0,0.0001704]
[1736312645831,1.07834591,96454.0,96453.0,0.0011704]
[1736312646052,1.17138032,96454.0,96453.0,0.0001704]
[1736312646254,1.26838032,96454.0,96453.0,0.0001704]
[1736312646456,1.27438032,96454.0,96453.0,0.0011704]
[1736312646665,1.27938032,96454.0,96453.0,0.0011704]
[1736312646879,1.37888382,96454.0,96453.0,0.0011704]
[1736312647086,1.37388382,96454.0,96453.0,0.0011704]
[1736312647525,1.37388382,96454.0,96453.0,0.0021704]
[1736312647526,1.37988382,96454.0,96453.0,0.0021704]
[1736312648173,1.37388382,96454.0,96453.0,0.0011704]
[1736312648376,1.38288382,96454.0,96453.0,0.0011704]
[1736312648754,1.37388382,96454.0,96453.0,0.0011704]
[1736312648959,1.28384941,96454.0,96453.0,0.0011704]
[1736312649320,1.38116256,96454.0,96453.0,0.0001704]
[1736312649638,1.09237356,96454.0,96453.0,0.0011704]
[1736312649910,1.10255056,96454.0,96453.0,0.0011704]
[1736312650107,0.64233952,96454.0,96453.0,0.0001704]
[1736312650336,0.74045456,96454.0,96453.0,0.0001704]
[1736312650533,0.74645456,96454.0,96453.0,0.0011704]
[1736312650885,1.07154756,96454.0,96453.0,0.0001704]
[1736312651301,0.74645456,96454.0,96453.0,0.0011704]
[1736312651755,0.73745456,96454.0,96453.0,0.0011704]
[1736312651954,0.74645456,96454.0,96453.0,0.0021704]
[1736312652190,0.74585456,96454.0,96453.0,0.0021704]
[1736312652360,0.73685456,96454.0,96453.0,0.0011704]
[1736312652555,0.73085456,96454.0,96453.0,0.0001704]
[1736312652960,0.74585456,96454.0,96453.0,0.0021704]
[1736312654649,0.74590555,96454.0,96453.0,0.0021704]
[1736312655701,0.74590555,96454.0,96453.0,0.0001704]
[1736312655702,0.73090555,96454.0,96453.0,0.0001704]
[1736312656264,0.74490555,96454.0,96453.0,0.0011704]
[1736312656437,0.73990555,96454.0,96453.0,0.0001704]
[1736312656671,0.73990555,96454.0,96453.0,0.0011704]
[1736312656672,0.64955409,96454.0,96453.0,0.0011704]
[1736312656881,0.63755409,96454.0,96453.0,0.0001704]
[1736312657056,0.72666913,96454.0,96453.0,0.0001704]
[1736312657195,0.72966913,96454.0,96453.0,0.0011704]
[1736312657613,0.73466913,96454.0,96453.0,0.0011704]
[1736312658571,0.72566913,96454.0,96453.0,0.0001704]
[1736312658813,1.25997113,96454.0,96453.0,0.0011704]
[1736312659305,1.25497113,96454.0,96453.0,0.0011704]
[1736312659816,1.25497113,96454.0,96453.0,0.0001704]
[1736312659817,1.04608213,96454.0,96453.0,0.0001704]
[1736312660067,0.97527713,96454.0,96453.0,0.0011704]
[1736312660266,0.96627713,96454.0,96453.0,0.0001704]
[1736312660473,0.82566913,96454.0,96453.0,0.0001704]
[1736312660678,1.08767313,96454.0,96453.0,0.0001704]
[1736312661568,1.03221613,96454.0,96453.0,0.0001704]
[1736312661823,1.04121613,96454.0,96453.0,0.0011704]
[1736312663214,1.36355054,96454.0,96453.0,4e-07]
[1736312663495,1.17527366,96454.0,96453.0,4e-07]
[1736312664329,1.17027366,96454.0,96453.0,4e-07]
[1736312664539,1.17627366,96454.0,96453.0,4e-07]
[1736312664725,1.16727366,96454.0,96453.0,4e-07]
[1736312665126,1.17627366,96454.0,96453.0,4e-07]
[1736312665347,0.18589096,96437.0,96436.0,0.0001704]
[1736312665553,0.59688642,96437.0,96436.0,0.0001704]
[1736312665687,0.58052496,96437.0,96436.0,0.0001704]
[1736312665895,0.55974896,96437.0,96436.0,0.0001704]
[1736312666824,0.66874896,96437.0,96436.0,0.0001704]
[1736312667028,0.99812414,96437.0,96436.0,0.0001704]
[1736312667664,0.99612414,96437.0,96436.0,0.0001704]
[1736312668065,0.98712414,96437.0,96436.0,0.0001704]
[1736312668606,0.99612414,96437.0,96436.0,0.0001704]
[1736312669021,0.98192414,96437.0,96436.0,0.0011704]
[1736312669430,0.97792414,96437.0,96436.0,0.0011704]
[1736312669785,0.98092414,96437.0,96436.0,0.0011704]
[1736312670013,0.99155251,96437.0,96436.0,0.0011704]
[1736312670182,0.95887451,96437.0,96436.0,0.0011704]
[1736312671030,0.85887451,96437.0,96436.0,0.0011704]
[1736312671291,0.66316847,96437.0,96436.0,0.0011704]
[1736312671455,0.45577947,96437.0,96436.0,0.1320704]
[1736312671603,0.53426614,96437.0,96436.0,0.23110481]
[1736312672010,0.53414136,96437.0,96436.0,0.23110481]
[1736312673403,0.53414136,96437.0,96436.0,0.1320704]
[1736312673634,0.53414136,96437.0,96436.0,0.1336704]
[1736312676797,0.53114136,96437.0,96436.0,0.1336704]
[1736312676977,0.53114136,96437.0,96436.0,0.23270481]
[1736312676978,0.20376618,96437.0,96436.0,0.23270481]
[1736312677182,0.20676618,96437.0,96436.0,0.28090481]
[1736312677397,0.11765114,96437.0,96436.0,0.4853769]
[1736312677597,0.09211504,96437.0,96436.0,0.41932527]
[1736312677824,0.18876618,96437.0,96436.0,0.41932527]
[1736312678005,0.19776618,96437.0,96436.0,0.42032527]
[1736312678208,0.19776618,96437.0,96436.0,0.55839612]
[1736312678519,0.19476618,96437.0,96436.0,0.55839612]
[1736312678715,0.19676618,96437.0,96436.0,0.55839612]
[1736312679140,0.20076618,96437.0,96436.0,0.55839612]
[1736312679353,0.19876618,96437.0,96436.0,0.27990481]
[1736312679565,0.18576618,96437.0,96436.0,0.27990481]
[1736312680847,0.1910624,96437.0,96436.0,0.1808704]
[1736312681276,0.1870624,96437.0,96436.0,0.1808704]
[1736312681653,0.1910624,96437.0,96436.0,0.1808704]
[1736312682056,0.51443758,96437.0,96436.0,0.1808704]
[1736312682277,0.51714136,96437.0,96436.0,0.1808704]
[1736312683647,0.51714136,96437.0,96436.0,0.0501704]
[1736312684064,0.74956899,96437.0,96436.0,0.0501704]
[1736312684240,0.77986899,96437.0,96436.0,0.23757438]
[1736312684438,0.88052931,96437.0,96436.0,0.23757438]
[1736312684682,0.97256372,96437.0,96436.0,0.09139738]
[1736312684840,0.99929171,96437.0,96436.0,0.03017738]
[1736312685051,1.02429171,96437.0,96436.0,0.00233151]
[1736312685255,1.02429171,96437.0,96424.0,0.0001704]
[1736312685256,0.79318118,96425.0,96424.0,0.0001704]
[1736312685566,2.58825304,96425.0,96424.0,0.0001704]
[1736312685915,2.58825304,96425.0,96424.0,4e-07]
[1736312685916,2.68825304,96425.0,96424.0,4e-07]
[1736312686123,1.25718004,96425.0,96424.0,4e-07]
[1736312686754,1.25718004,96425.0,96424.0,0.0001533]
[1736312687165,1.26621926,96425.0,96424.0,0.0001533]
[1736312688015,2.05034826,96425.0,96424.0,0.0001533]
[1736312688192,2.03755726,96425.0,96424.0,0.0001533]
[1736312688400,2.02187526,96425.0,96424.0,0.0011533]
[1736312688569,1.99066326,96425.0,96424.0,0.0011533]
[1736312688780,1.98566326,96425.0,96424.0,0.0001533]
[1736312688976,1.96488226,96425.0,96424.0,0.0001533]
[1736312689189,1.97088226,96425.0,96424.0,0.0011533]
[1736312689952,1.94874126,96425.0,96424.0,0.0011533]
[1736312690377,1.58907522,96425.0,96424.0,0.0011533]
[1736312690602,1.47711126,96425.0,96424.0,0.0011533]
[1736312691026,1.80448644,96425.0,96424.0,0.0011533]
[1736312691230,1.70545203,96425.0,96424.0,0.0011533]
[1736312691583,1.69645203,96425.0,96424.0,0.0011533]
[1736312692029,1.70545203,96425.0,96424.0,0.0011533]
[1736312692200,1.69945203,96425.0,96424.0,0.0001533]
[1736312692404,1.42091903,96425.0,96424.0,0.0011533]
[1736312692633,1.52991903,96425.0,96424.0,0.0011533]